Cogmind - Beta 14 @@@ ROGUE MODE // 2024.10.30 @ 19:37:54 Player: Kate+Gabe4evr Result: Destroyed by VO-UXB(j) with Overtuned Pulse Rifle Performance ------------- Evolutions (2) 1000 Regions Visited (5) 1000 Robots Destroyed (32) 160 Value Destroyed (1250) 1250 Prototype IDs (4) 80 Alien Tech Used (0) 0 Bonus (-14) -14 TOTAL SCORE: 3476 Bonus ------- High Alert Combat Kills 31 Follower Combat Kills 69 Friendly Fire -114 Cogmind --------- Core Integrity 0/550 Matter 300/300 Energy 100/100 System Corruption 0% Temperature Cool (62) Movement Core (50) Location -8/Recycling Parts ------- > --- POWER (1) -------- (None) > --- PROPULSION (4) --- (None) > --- UTILITY (4) ------ Structural Scanner > --- WEAPON (2) ------- (None) > --- INVENTORY (5) ---- Aluminum Leg Aluminum Leg Medium Storage Unit Signal Interpreter Light Armor Plating Peak State ------------ > --- POWER ------------ Light Nuclear Core > --- PROPULSION ------- Aluminum Leg Carbon-fiber Leg Carbon-fiber Leg Carbon-fiber Leg > --- UTILITY ---------- Advanced Heat Sink Large Storage Unit Structural Scanner Light Armor Plating > --- WEAPON ----------- Field Laser Precision Rocket Launcher > --- INVENTORY -------- Improved Ion Engine Improved Ion Engine Aluminum Leg Aluminum Leg Aluminum Leg Aluminum Leg Improved Heat Sink Medium Storage Unit Signal Interpreter Advanced Targeting Computer Light Armor Plating Medium Laser Particle Gun Assault Rifle Rocket Launcher [Rating: 32] Favorites ----------- Power Ion Engine Engine Ion Engine Power Core Light Nuclear Core Propulsion Aluminum Leg Leg Aluminum Leg Utility Structural Scanner Device Structural Scanner Storage Large Storage Unit Processor Targeting Computer Protection Light Armor Plating Weapon Field Laser Energy Gun Field Laser Ballistic Gun Heavy Assault Rifle Launcher Advanced EMP Blaster Build | -11 -10 -9 -8 -8 -8 ------- Run | Yrd Mat Mat Mat Sto Rec Slots Evolved 4 | . . 2 2 . . Power . | . . . . . . Propulsion 2 | . . 1 1 . . Utility 2 | . . 1 1 . . Weapon . | . . . . . . Parts Attached 55 | 6 3 8 12 19 7 Power 8 | 1 . 1 1 5 . Engine 7 | 1 . 1 1 4 . Core 1 | . . . . 1 . Reactor . | . . . . . . Propulsion 17 | 2 1 2 4 4 4 Treads . | . . . . . . Leg 17 | 2 1 2 4 4 4 Wheel . | . . . . . . Hover . | . . . . . . Flight . | . . . . . . Utility 14 | 1 2 3 5 3 . Device 5 | . 1 1 3 . . Storage 5 | 1 1 2 1 . . Processor 1 | . . . . 1 . Hackware . | . . . . . . Protection 3 | . . . 1 2 . Artifact . | . . . . . . Weapon 16 | 2 . 2 2 7 3 Energy Gun 6 | 1 . 1 1 2 1 Energy Cannon . | . . . . . . Ballistic Gun 8 | 1 . 1 1 3 2 Ballistic Cannon . | . . . . . . Launcher 2 | . . . . 2 . Special Weapon . | . . . . . . Impact Weapon . | . . . . . . Slashing Weapon . | . . . . . . Piercing Weapon . | . . . . . . Special Melee Weapon . | . . . . . . Unidentified Prototypes 4 | . . . . 4 . Parts Lost 26 | . . . 6 4 16 Power 2 | . . . 1 . 1 Propulsion 8 | . . . . 2 6 Utility 8 | . . . 3 2 3 Weapon 8 | . . . 2 . 6 Highest Loss Streak 16 | . . . 6 3 16 To Critical Strikes . | . . . . . . Average Slot Usage (%) 98 | . 99 99 95 99 96 Engine 8 | . 14 11 8 5 8 Core 1 | . . . . 3 . Leg 33 | . 28 33 36 35 34 Device 18 | . 13 22 22 18 17 Storage 10 | . 14 10 9 9 8 Protection 3 | . . . 1 6 8 Energy Gun 10 | . 14 11 9 9 9 Ballistic Gun 10 | . 14 11 8 9 8 Peak Build Rating 32 | 6 7 13 22 32 32 Average Rating 19 | 4 6 10 16 26 29 On Entrance 12 | . 6 7 13 22 28 Naked Turns . | . . . . . . Heaviest Build 39 | 14 20 25 38 39 39 Greatest Support 66 | 20 20 30 50 55 66 Greatest Overweight (x) 3 | 3 . . . . . Average Overweight (x) . | . . . . . . Largest Inventory Capacity 15 | 8 10 15 15 15 15 Average Capacity 12 | 7 9 10 14 15 14 Most Carried 15 | 1 7 10 11 15 15 Average Carried 10 | . 5 8 8 14 14 Final Capacity 15 | 8 10 10 15 15 5 Final Carried 15 | 1 7 10 11 15 5 Class Distribution -------------------- 37% | Mutant 33% | Scavenger-Mutant 28% | Commander-Mutant Dominant Class ---------------- Mutant | -10/Materials Mutant | -9/Materials Scavenger-Mutant | -8/Materials Scavenger-Mutant | -8/Storage Commander-Mutant | -8/Recycling Resources | -11 -10 -9 -8 -8 -8 ----------- Run | Yrd Mat Mat Mat Sto Rec Matter Collected 998 | 238 54 126 177 314 89 Remotely . | . . . . . . Salvage Created 1691 | . 81 135 463 958 54 Parts 83 | . 6 9 17 48 3 Haulers Intercepted . | . . . . . . Recyclers Shooed 1 | . . . 1 . . Parts Field Recycled . | . . . . . . Retrieved Matter . | . . . . . . Parts Self-Destructed . | . . . . . . Prevented . | . . . . . . Kills | -11 -10 -9 -8 -8 -8 ------- Run | Yrd Mat Mat Mat Sto Rec Combat Hostiles Destroyed 27 | . 2 3 5 16 1 Guns 27 | . 2 3 5 16 1 Classes Destroyed 6 | . 1 2 2 1 . Recycler 5 | . . . 3 2 . Grunt 14 | . 2 1 4 7 . Brawler 1 | . . . . 1 . Duelist 1 | . . 1 . . . Sentry 9 | . . 1 . 7 1 Hunter 2 | . . . 1 1 . Best Kill Streak 4 | . 2 2 4 4 1 Combat Bots Only 4 | . 2 2 3 4 1 Max Kills in Single Turn 2 | . 1 1 2 1 1 Gunslinging 1 | . . . 1 . . Exploded . | . . . . . . Melee . | . . . . . . Uniques/NPCs Destroyed . | . . . . . . Combat | -11 -10 -9 -8 -8 -8 -------- Run | Yrd Mat Mat Mat Sto Rec Hostile Shots Fired 236 | . 5 12 46 73 100 Missed 35 | . 1 5 12 13 4 Damage Taken 2768 | . 42 132 549 863 1182 Core 578 | . 10 . 94 108 366 Absorbed by Shields . | . . . . . . Core Remaining (%) 98 | 100 96 100 . . . Volleys Fired 99 | . 4 9 22 48 16 Largest 2 | . 2 2 2 2 2 Hottest 90 | . 70 79 79 86 90 Shots Fired 196 | . 8 18 44 96 30 Gun 196 | . 8 18 44 96 30 Cannon . | . . . . . . Launcher . | . . . . . . Special . | . . . . . . Kinetic 98 | . 4 9 22 48 15 Thermal 98 | . 4 9 22 48 15 Explosive . | . . . . . . Electromagnetic . | . . . . . . Robot Hit Streak 23 | . 4 7 10 21 23 Robot Miss Streak 2 | . 1 2 2 2 2 Penetration Max . | . . . . . . Secondary Targets 4 | . . 1 1 2 . Max Gunslinging Chain 1 | . . 1 1 1 . Shots Hit Robots 160 | . 7 14 34 81 24 Core Hits 72 | . 4 7 23 36 2 Critical Kills . | . . . . . . Critical Parts Destroyed . | . . . . . . Critical Strikes 12 | . 1 2 4 3 2 Burn 12 | . 1 2 4 3 2 Melee Attacks . | . . . . . . Impact . | . . . . . . Slashing . | . . . . . . Piercing . | . . . . . . Sneak Attacks . | . . . . . . Combat Hostiles . | . . . . . . Follow-up Attacks . | . . . . . . Damage Inflicted 2538 | . 93 207 554 1336 348 Guns 2474 | . 93 207 547 1298 329 Cannons . | . . . . . . Explosions . | . . . . . . Melee . | . . . . . . Ramming 64 | . . . 7 38 19 Kinetic 1209 | . 55 96 309 570 179 Thermal 1265 | . 38 111 238 728 150 Explosive . | . . . . . . Electromagnetic . | . . . . . . Impact . | . . . . . . Slashing . | . . . . . . Piercing . | . . . . . . Highest Corruption . | . . . . . . Average Corruption . | . . . . . . Corruption Purged . | . . . . . . Corruption Blocked . | . . . . . . Overload Shots . | . . . . . . Overflow Damage . | . . . . . . Projectiles . | . . . . . . Explosions . | . . . . . . Melee . | . . . . . . Knockbacks 1 | . . . . . 1 Impact 1 | . . . . . 1 Kinetic . | . . . . . . Secondary . | . . . . . . Self-Inflicted Damage 5 | . . . . . 5 Shots . | . . . . . . Rammed 6 | . . . . . 6 Targets Rammed 15 | . 1 . 1 6 7 Kicked 9 | . 1 . 1 6 1 Crushed . | . . . . . . Highest Temperature 199 | . 60 81 199 20 106 Average Temperature 61 | . 33 32 90 7 41 Received Heat Transfer 1433 | . 24 18 279 432 680 Siege Activations . | . . . . . . Robots Corrupted . | . . . . . . Combat Hostiles . | . . . . . . Parts Fried 1 | . . . . 1 . Impact Corruptions . | . . . . . . Robots Melted . | . . . . . . Combat Hostiles . | . . . . . . Parts Melted 7 | . . 1 2 4 . Heat Transferred 3922 | . 185 444 962 1776 555 Parts Sabotaged . | . . . . . . Parts Stolen . | . . . . . . Parts Stripped . | . . . . . . Power Chain Reactions . | . . . . . . Alert | -11 -10 -9 -8 -8 -8 ------- Run | Yrd Mat Mat Mat Sto Rec Peak Influence 469 | . 55 95 164 469 168 Initial 134 | . . . 39 68 134 Average 162 | . 25 26 95 315 120 Maximum Alert Level 2 | . . . . 2 . Low Security (%) 65 | 100 100 100 100 15 100 Level 1 25 | . . . . 62 . Level 2 8 | . . . . 21 . Level 3 . | . . . . . . Level 4 . | . . . . . . Level 5 . | . . . . . . High Security . | . . . . . . Max Security . | . . . . . . Squads Dispatched 2 | . 1 . . 1 . Investigation 1 | . 1 . . . . Extermination . | . . . . . . Reinforcement 1 | . . . . 1 . Assault . | . . . . . . Garrison . | . . . . . . Intercept . | . . . . . . Searches Triggered . | . . . . . . Construction Impeded . | . . . . . . Haulers Reinforced . | . . . . . . Active Scanning Responses . | . . . . . . Cargo Convoy Interrupts . | . . . . . . Stealth | -11 -10 -9 -8 -8 -8 --------- Run | Yrd Mat Mat Mat Sto Rec Distress Signals 6 | . 1 . 1 4 . Communications Jammed . | . . . . . . Distress Signals . | . . . . . . Times Spotted 77 | . 5 4 11 28 29 Peak Tracking Total 5 | . 2 3 5 5 5 Tactical Retreats 3 | . . . . . 3 Traps | -11 -10 -9 -8 -8 -8 ------- Run | Yrd Mat Mat Mat Sto Rec Traps Triggered 2 | . 1 . . 1 . Indirectly . | . . . . . . Trap Hack Attempts . | . . . . . . Triggered . | . . . . . . Disarmed . | . . . . . . Reprogrammed . | . . . . . . Reused . | . . . . . . Traps Extracted . | . . . . . . Installed . | . . . . . . Triggered . | . . . . . . Machines | -11 -10 -9 -8 -8 -8 ---------- Run | Yrd Mat Mat Mat Sto Rec Machines Disabled . | . . . . . . Max in Single Turn . | . . . . . . Machines Repaired . | . . . . . . Machines Dismantled . | . . . . . . Machines Sabotaged . | . . . . . . Overloaded Fab Kills . | . . . . . . Hacking | -11 -10 -9 -8 -8 -8 --------- Run | Yrd Mat Mat Mat Sto Rec Machines Accessed 3 | . . . 1 2 . Terminals 3 | . . . 1 2 . Fabricators . | . . . . . . Repair Stations . | . . . . . . Recycling Units . | . . . . . . Scanalyzers . | . . . . . . Garrison Access . | . . . . . . Total Hacks 7 | . . . 1 6 . Successful 2 | . . . 1 1 . Failed 5 | . . . . 5 . Catastrophic . | . . . . . . Database Lockouts . | . . . . . . Manual 1 | . . . 1 . . Terminals 7 | . . . 1 6 . Fabricators . | . . . . . . Repair Stations . | . . . . . . Recycling Units . | . . . . . . Scanalyzers . | . . . . . . Garrison Access . | . . . . . . Terminal Hacks 1 | . . . . 1 . Robot Analysis 1 | . . . . 1 . Fabricator Hacks . | . . . . . . Repair Station Hacks . | . . . . . . Recycling Unit Hacks . | . . . . . . Scanalyzer . | . . . . . . Garrison Access Hacks . | . . . . . . Unauthorized Hacks 1 | . . . 1 . . Terminals 1 | . . . 1 . . Botnet 1 | . . . 1 . . Fabricators . | . . . . . . Repair Stations . | . . . . . . Recycling Units . | . . . . . . Scanalyzers . | . . . . . . Garrison Access . | . . . . . . Data Cores Recovered . | . . . . . . Used . | . . . . . . Hacking Detections 2 | . . . 1 1 . Full Trace Events . | . . . . . . Feedback Events . | . . . . . . Feedback Blocked . | . . . . . . Robot Schematics Acquired . | . . . . . . Robots Built . | . . . . . . Authchips . | . . . . . . Time . | . . . . . . Total Robot Build Rating . | . . . . . . Part Schematics Acquired . | . . . . . . Parts Built . | . . . . . . Authchips . | . . . . . . Time . | . . . . . . Total Part Build Rating . | . . . . . . Parts Repaired . | . . . . . . Time . | . . . . . . Parts Recycled . | . . . . . . Recycled Matter . | . . . . . . Retrieved Matter . | . . . . . . Retrieved Components . | . . . . . . Parts Scanalyzed . | . . . . . . Part Schematics Acquired . | . . . . . . Parts Damaged . | . . . . . . Bothacking | -11 -10 -9 -8 -8 -8 ------------ Run | Yrd Mat Mat Mat Sto Rec Used RIF Installer . | . . . . . . Robots Hacked . | . . . . . . Non-combat . | . . . . . . Combat . | . . . . . . Robot Hacks Applied . | . . . . . . Relay Couplers Released . | . . . . . . Fabnet Peak Effective % . | . . . . . . Robots Rewired 1 | . . . . 1 . Allies Hacked . | . . . . . . Hacks Repelled . | . . . . . . Allies | -11 -10 -9 -8 -8 -8 -------- Run | Yrd Mat Mat Mat Sto Rec Total Allies 10 | . . . . 10 . Largest Group 10 | . . . . 10 10 Highest-Rated Group 173 | . . . . 173 168 Highest-Rated Ally 29 | . . . . 29 29 Total Orders . | . . . . . . Ally Attacks 27 | . . . . 14 13 Total Damage 299 | . . . . 104 195 Kills 2 | . . . . 1 1 Allies Corrupted . | . . . . . . Allies Melted . | . . . . . . Intel | -11 -10 -9 -8 -8 -8 ------- Run | Yrd Mat Mat Mat Sto Rec Robot Analysis Total 1 | . . . . 1 . Derelict Logs Recovered . | . . . . . . Drone Launches . | . . . . . . Drone Recoveries . | . . . . . . Exploration | -11 -10 -9 -8 -8 -8 ------------- Run | Yrd Mat Mat Mat Sto Rec Turns Passed 2824 | 64 626 304 335 1140 355 Spaces Moved 1472 | 42 226 192 195 582 235 Core 17 | 17 . . . . . Treads . | . . . . . . Legs 1455 | 25 226 192 195 582 235 Wheels . | . . . . . . Hover . | . . . . . . Flight . | . . . . . . Fastest Speed 50 | 50 120 120 120 120 120 Average Speed 120 | 130 120 120 120 120 123 Slowest Speed 200 | 200 120 120 120 120 127 Overloaded Moves . | . . . . . . Propulsion Burnouts . | . . . . . . Robots Hopped . | . . . . . . Cave-ins Triggered . | . . . . . . Exploration Rate (%) 40 | 5 49 27 18 94 47 Regions Visited 5 Branch Regions 2 Pre-discovered Areas . | . . . . . . Known Exits Taken . | . . . . . . Unknown Exits Taken 5 | 1 1 1 1 1 . Scrap Searched . | . . . . . . Spaces Dug . | . . . . . . Terrain Destroyed . | . . . . . . Melee . | . . . . . . Projectile . | . . . . . . AOE . | . . . . . . Terrain Rammed . | . . . . . . Walls Destroyed . | . . . . . . Machines Disabled . | . . . . . . Actions | -11 -10 -9 -8 -8 -8 --------- Run | Yrd Mat Mat Mat Sto Rec Total 2321 | 48 571 248 248 930 276 Wait 622 | . 334 31 16 240 1 Move 1467 | 41 225 191 194 581 235 Hop . | . . . . . . Pick Up 27 | 1 4 6 3 12 1 Fast Attach 17 | 6 1 . 3 7 . Attach 14 | . . 3 5 4 2 Detach 2 | . . . . . 2 Swap 24 | . 2 5 4 8 5 Drop 26 | . . 3 . 16 7 Fire 99 | . 4 9 22 48 16 Melee . | . . . . . . Ram 6 | . . . . . 6 Kick 9 | . 1 . 1 6 1 Crush . | . . . . . . Escape Stasis . | . . . . . . Rewire 8 | . . . . 8 . Trap . | . . . . . . Miscellaneous . | . . . . . . Route ------- -11/Scrapyard -10/Materials -9/Materials -8/Materials (discovered 3 exits: [*Fac] / *Sto x2) -8/Storage (discovered 2 exits: [*Fac] / [*Rec]) -8/Recycling History --------- Turn | Location | Event 29 | -11/Scrapyard | Discovered new exit (range 15) 65 | -11/Scrapyard | Entered Materials 307 | -10/Materials | Build established: Mutant 684 | -10/Materials | Discovered new exit (range 7) 691 | -10/Materials | Entered another Materials area 691 | -9/Materials | Evolved 2 slots: Propulsion x1, Utility x1 976 | -9/Materials | Discovered new exit (range 16) 995 | -9/Materials | Entered another Materials area 995 | -8/Materials | Evolved 2 slots: Propulsion x1, Utility x1 1020 | -8/Materials | Discovered new exit (range 15) 1196 | -8/Materials | Discovered new exit (range 16) 1211 | -8/Materials | Lost 6 parts (1p3u2w) 1305 | -8/Materials | Discovered new exit (range 16) 1330 | -8/Materials | Entered Storage 1503 | -8/Storage | Build established: Scavenger-Mutant 1774 | -8/Storage | Lost 3 parts (2n1u) 1819 | -8/Storage | Met 01-MTF 1891 | -8/Storage | Discovered new exit (range 14) 1997 | -8/Storage | Assisted by bots powering up and referring to "LRC-V3" 2268 | -8/Storage | Build established: Commander-Mutant 2440 | -8/Storage | Discovered new exit (range 8) 2470 | -8/Storage | Entered Recycling 2470 | -8/Recycling | Accompanied by 11 allies (01-MTF) 2722 | -8/Recycling | Scanned before Scraplab entrance 2783 | -8/Recycling | Angered Scraplab inhabitants 2816 | -8/Recycling | Core integrity fell below 50% 2824 | -8/Recycling | Lost 10 allies 2824 | -8/Recycling | Core integrity fell below 20% 2825 | -8/Recycling | Destroyed by VO-UXB(j) with Overtuned Pulse Rifle Last Messages --------------- 02819_ Titanium Leg crushed and broken. 02819_ Hvy. Ion Engine crushed and broken. 02820_ Slammed into KN-7UR. 02821_ Penetrated by Thermabolt. 02821_ Thermabolt penetrates Earth. 02821_ Penetrated by Thermabolt. 02821_ Particle Gun destroyed. 02821_ Penetrated by Thermabolt. 02821_ Thermabolt penetrates Earth. 02821_ Slammed into KN-7UR. 02822_ Slammed into VO-UXB(j). 02822_ Critical hit (Burn: +50). 02823_ Thermabolt penetrates Wall. 02823_ Slammed into VO-UXB(j). 02825_ Wall collapses. 02825_ Penetrated by Thermabolt. 02825_ Thermabolt penetrates Wall. 02825_ Penetrated by Thermabolt. 02825_ Thermabolt penetrates Wall. 02825_ Slammed into VO-UXB(j). Map ----- +----------------------------------------------------+ | | | | | | | | | | | | | | | | | | | | | | | | | | | | | | | | | | | | | | | | | | | ?????????????????????????????????????????????????? | | ??????????????????????????????????"#" ##?????????? | | ????????????????????######## ??? " ## ##?????????? | | ???????????????????#########*! ##?????????? | | ???????????????????###*!%@j*%!c c ##?????????? | | ???????????????????##=h%####= "##?????????? | | ??????????????????###!!%#### ??? ""???????????? | | ?????????????????###*#%###??????????"????????????? | | ????????????????###*##=#####?????????????????????? | | ????????????????##!###=#####?????????????????????? | | ????????????????### [%* ##?????????????????????? | | ????????????????### *%= ##?????????????????????? | | ?????????????????## ##?????????????????????? | | ?????????????????## ##?????????????????????? | | ?????????????????#####+#####?????????????????????? | | ?????????????????##### ###############???????????? | | ????????????????????## ###########T###???????????? | | ????????????????###### ?????? | | ????????????????#########/##+#### ?????? | | ????????????????## # ???????????????? | | ????????????????### + ???????????????? | | ###?????????????### ##???????????????? | | #######??????????## ##???????????????? | | ######??????????## ##???????????????? | | # """ "?????????## ##???????????????? | | # """ """ ##????#######+##+######???????????????? | | # """ """ # ######???????????????? | | # # ????#+######## #####????????????????? | | + # ???? ## #####????????????????? | +----------------------------------------------------+ Best States ------------- Heat Dissipation 64 Energy Generation 14 Energy Capacity 280 Matter Stores 300 Matter Capacity 300 Sight Range 16 Terrain Scan Density 10 Armor Coverage 150 Evasion (%) 55 Targeting Accuracy 5 Recoil Reduction 4 Item Schematics ----------------- None Robot Schematics ------------------ None Fabricated ------------ Nothing Alien Tech Used ----------------- None Achievements -------------- None Challenges ------------ None Game ------ Seed HypercooledSingularityBrace Manual? 0 Play Time 00:19:54 Cumulative 56.4 hours Start 2024.10.30 @ 19:20:33 End 2024.10.30 @ 19:37:54 Sessions 1 Manual Loads 0 Difficulty Rogue Special Mode None Game No. 101 Rogue 101 Adventurer 0 Explorer 0 Win Type - Total 1 Types 1/0/0/0/0/0/0/0/0 Lore% 40 Gallery% 50 Achievement% 43 Wizard Run 0 Options --------- Layout 0 ASCII 0 Keyboard 1 Movement Numpad Keybinds 0 Fullscreen 2 Font 24/Terminus Map View 76x50 Zoom Use 0% Tactical HUD 1 Map Filters NONE Filters NONE Steam 1 RUN: 1f9beca0-b4df-4161-ad50-6639e7231572